[Event "Delancey UK Schools 2019 U18"]
[Site "Daventry"]
[Date "2019.09.24"]
[Round "3.11"]
[White "Golding, James"]
[Black "Nayak, Raghav"]
[Result "1-0"]
[ECO "E81"]
[WhiteElo "2075"]
[BlackElo "1914"]
[Annotator "NA"]
[PlyCount "67"]
[EventDate "2019.09.24"]
[EventCountry "GBR"]
[SourceTitle "playchess.com"]
[Source "ChessBase"]
[SourceQuality "1"]
[TimeControl "40/5400+30:1800+30"]

1. d4 {[%emt 1:10:12]} Nf6 {[%emt 1:10:11]} 2. c4 {[%emt 0:00:21]} g6 {[%emt 0:00:22]} 3. Nc3 {[%emt 0:00:21]} Bg7 {[%emt 0:00:22]} 4. e4 {[%emt 0:00:22]} d6 {[%emt 0:00:21]} 5. f3 {[%emt 0:00:21]} O-O {[%emt 0:00:22]} 6. Be3 {[%emt 0:00:22]} Nbd7 {[%emt 0:00:22]} 7. Qd2 {[%emt 0:00:51]} c5 {[%emt 0:00:29]} 8. d5 {[%emt 0:02:06]} Ne5 {[%emt 0:00:33]} 9. h3 {[%emt 0:02:02]} Nh5 {[%emt 0:00:39]} 10. Bf2 {[%emt 0:00:42]} f5 {[%emt 0:00:35]} 11. exf5 {[%emt 0:02:04]} Rxf5 {[%emt 0:00:22]} 12. O-O-O {[%emt 0:04:16]} Rf7 {[%emt 0:02:51]} 13. h4 {[%emt 0:02:00]} Qa5 {[%emt 0:01:12]} 14. a3 {[%emt 0:01:43]} Bd7 {[%emt 0:00:58]} 15. Nh3 {[%emt 0:02:31]} a6 {[%emt 0:02:42]} 16. Ne4 {[%emt 0:02:00]} Qa4 {[%emt 0:01:21]} 17. Qc2 {[%emt 0:00:22]} Qa5 {[%emt 0:02:36]} 18. Nhg5 {[%emt 0:01:27]} Bh6 {[%emt 0:01:07]} 19. Kb1 {[%emt 0:00:38]} Rff8 {[%emt 0:02:19]} 20. g4 {[%emt 0:00:45]} Nf6 {[%emt 0:01:11]} 21. h5 {[%emt 0:01:05]} Kg7 {[%emt 0:01:45]} 22. hxg6 {[%emt 0:00:46]} hxg6 {[%emt 0:00:36]} 23. Rxh6 {[%emt 0:03:10]} Kxh6 {[%emt 0:01:21]} 24. Be1 {[%emt 0:00:24]} Qd8 {[%emt 0:05:17]} 25. Qh2+ {[%emt 0:00:27]} Nh5 {[%emt 0:01:50]} 26. gxh5 {[%emt 0:00:32]} gxh5 {[%emt 0:00:36]} 27. Bd2 {[%emt 0:00:40]} Kg7 {[%emt 0:00:36]} 28. f4 {[%emt 0:01:00]} Ng6 {[%emt 0:00:39]} 29. Qxh5 {[%emt 0:00:39]} Rh8 {[%emt 0:00:22]} 30. Bc3+ {[%emt 0:00:22]} Ne5 {[%emt 0:00:44]} 31. Qf7+ {[%emt 0:00:23]} Kh6 {[%emt 0:00:25]} 32. fxe5 {[%emt 0:00:23]} Qb6 {[%emt 0:00:41]} 33. exd6 {[%emt 0:00:29]} Raf8 {[%emt 0:00:27]} 34. Bg7# {[%emt 0:00:22]} 1-0

[Event "Delancey UK Schools 2019 U18"]
[Site "Daventry"]
[Date "2019.09.24"]
[Round "3.13"]
[White "Isaksen, Peter A"]
[Black "Cocks, Elliot"]
[Result "1/2-1/2"]
[ECO "B22"]
[WhiteElo "1858"]
[BlackElo "1881"]
[Annotator "NA"]
[PlyCount "118"]
[EventDate "2019.09.24"]
[EventCountry "GBR"]
[SourceTitle "playchess.com"]
[Source "ChessBase"]
[SourceQuality "1"]
[TimeControl "40/5400+30:1800+30"]

1. e4 {[%emt 0:03:34]} c5 {[%emt 1:10:46]} 2. c3 {[%emt 1:06:58]} Nf6 {[%emt 0:00:26]} 3. e5 {[%emt 0:00:21]} Nd5 {[%emt 0:00:22]} 4. d4 {[%emt 0:00:21]} cxd4 {[%emt 0:00:22]} 5. Nf3 {[%emt 0:00:08]} d6 {[%emt 0:00:34]} 6. cxd4 {[%emt 0:00:35]} Nc6 {[%emt 0:00:26]} 7. Bc4 {[%emt 0:00:21]} e6 {[%emt 0:00:25]} 8. O-O {[%emt 0:00:26]} Be7 {[%emt 0:00:21]} 9. Qe2 {[%emt 0:00:22]} O-O {[%emt 0:00:51]} 10. Rd1 {[%emt 0:00:12]} Qc7 {[%emt 0:00:29]} 11. Nc3 {[%emt 0:01:21]} Nxc3 {[%emt 0:00:33]} 12. bxc3 {[%emt 0:00:22]} dxe5 {[%emt 0:00:22]} 13. dxe5 {[%emt 0:00:47]} b6 {[%emt 0:01:04]} 14. Bf4 {[%emt 0:01:26]} Bb7 {[%emt 0:02:44]} 15. Nd4 {[%emt 0:03:38]} a6 {[%emt 0:00:00]} 16. Rac1 {[%emt 0:03:52]} Rfc8 {[%emt 0:01:16]} 17. Bxe6 {[%emt 0:00:30]} fxe6 {[%emt 0:00:30]} 18. Nxe6 {[%emt 0:00:26]} Qb8 {[%emt 0:00:21]} 19. Qg4 {[%emt 0:00:30]} Bf8 {[%emt 0:00:39]} 20. Rd7 {[%emt 0:00:30]} g6 {[%emt 0:00:30]} 21. Nxf8 {[%emt 0:00:30]} Rxf8 {[%emt 0:00:30]} 22. Qe6+ {[%emt 0:00:30]} Kh8 {[%emt 0:00:30]} 23. Bh6 Qxe5 24. Qxe5+ {[%emt 0:03:47]} Nxe5 {[%emt 0:03:34]} 25. Bg7+ {[%emt 0:00:22]} Kg8 {[%emt 0:00:23]} 26. Bxe5 {[%emt 0:00:39]} Rf7 27. Rcd1 {[%emt 0:04:44]} Re8 28. Rd8 {[%emt 0:05:46]} Rfe7 {[%emt 0:00:29]} 29. f4 {[%emt 0:00:00]} Kf7 {[%emt 0:00:53]} 30. Kf2 {[%emt 0:00:00]} b5 {[%emt 0:01:13]} 31. Rxe8 {[%emt 0:00:00]} Kxe8 {[%emt 0:01:58]} 32. Rd6 {[%emt 0:01:14]} Rd7 {[%emt 0:01:00]} 33. Re6+ {[%emt 0:00:00]} Re7 {[%emt 0:00:28]} 34. Rb6 {[%emt 0:00:20]} Rd7 {[%emt 0:00:49]} 35. g3 {[%emt 0:00:30]} Kf7 {[%emt 0:00:30]} 36. Ke3 {[%emt 0:00:28]} Ke7 {[%emt 0:00:25]} 37. Bd6+ {[%emt 0:01:15]} Kf7 {[%emt 0:00:37]} 38. Kd4 {[%emt 0:00:36]} Ke6 {[%emt 0:01:38]} 39. Kc5 {[%emt 0:00:52]} Kf5 {[%emt 0:00:24]} 40. Be5 {[%emt 0:00:48]} Kg4 {[%emt 0:00:54]} 41. Rd6 {[%emt 0:30:46]} Rxd6 {[%emt 0:31:28]} 42. Kxd6 {[%emt 0:00:44]} Kf5 {[%emt 0:00:33]} 43. Kc7 {[%emt 0:00:25]} Bd5 {[%emt 0:00:22]} 44. Kb6 {[%emt 0:00:26]} Bxa2 {[%emt 0:00:25]} 45. Kxa6 {[%emt 0:00:28]} Bc4 {[%emt 0:00:22]} 46. Kb6 {[%emt 0:00:24]} Kg4 {[%emt 0:00:36]} 47. Kc5 {[%emt 0:00:35]} Kh3 {[%emt 0:00:28]} 48. Kd4 {[%emt 0:00:34]} Kxh2 {[%emt 0:00:30]} 49. f5 {[%emt 0:00:29]} gxf5 {[%emt 0:00:24]} 50. g4+ {[%emt 0:00:30]} Kh3 {[%emt 0:00:24]} 51. gxf5 {[%emt 0:00:12]} Kg4 {[%emt 0:00:23]} 52. Ke4 {[%emt 0:00:34]} Kg5 {[%emt 0:00:41]} 53. Bf4+ {[%emt 0:00:41]} Kf6 {[%emt 0:00:22]} 54. Be5+ {[%emt 0:00:21]} Kf7 {[%emt 0:00:21]} 55. Kf4 {[%emt 0:00:23]} Kg8 {[%emt 0:00:33]} 56. Kg5 {[%emt 0:00:39]} Kf7 {[%emt 0:00:22]} 57. Kh6 {[%emt 0:00:59]} Bd3 {[%emt 0:00:23]} 58. Kxh7 {[%emt 0:00:22]} Bxf5+ {[%emt 0:00:23]} 59. Kh6 {[%emt 0:00:22]} Ke6 {[%emt 0:00:00]} 1/2-1/2

[Event "Delancey UK Schools 2019 U18"]
[Site "Daventry"]
[Date "2019.09.24"]
[Round "3.14"]
[White "Stewart, Lilya"]
[Black "Modhura, Urbi"]
[Result "1-0"]
[ECO "C92"]
[WhiteElo "1567"]
[BlackElo "1451"]
[Annotator "NA"]
[PlyCount "60"]
[EventDate "2019.09.24"]
[EventCountry "GBR"]
[SourceTitle "playchess.com"]
[Source "ChessBase"]
[SourceQuality "1"]
[TimeControl "40/5400+30:1800+30"]

1. e4 {[%emt 1:10:11]} e5 {[%emt 1:10:12]} 2. Nf3 {[%emt 0:00:27]} Nc6 {[%emt 0:00:21]} 3. Bb5 {[%emt 0:00:21]} a6 {[%emt 0:00:21]} 4. Ba4 {[%emt 0:00:22]} Nf6 {[%emt 0:00:24]} 5. O-O {[%emt 0:00:22]} b5 {[%emt 0:00:24]} 6. Bb3 {[%emt 0:00:21]} Be7 {[%emt 0:00:23]} 7. Re1 {[%emt 0:00:22]} O-O {[%emt 0:00:27]} 8. c3 {[%emt 0:00:24]} d6 {[%emt 0:00:31]} 9. h3 {[%emt 0:00:21]} Re8 {[%emt 0:01:19]} 10. d4 {[%emt 0:00:27]} Bb7 {[%emt 0:01:01]} 11. Nbd2 {[%emt 0:00:49]} Rc8 {[%emt 0:00:54]} 12. Nf1 {[%emt 0:00:26]} h6 {[%emt 0:01:13]} 13. Ng3 {[%emt 0:00:31]} Bf8 {[%emt 0:02:11]} 14. Be3 {[%emt 0:02:00]} exd4 {[%emt 0:00:37]} 15. cxd4 {[%emt 0:01:20]} Na5 {[%emt 0:00:44]} 16. e5 {[%emt 0:03:42]} dxe5 {[%emt 0:02:41]} 17. Nxe5 {[%emt 0:03:02]} Nxb3 {[%emt 0:01:27]} 18. Qxb3 {[%emt 0:02:32]} Bd5 {[%emt 0:01:01]} 19. Qc3 {[%emt 0:03:38]} Bd6 {[%emt 0:04:34]} 20. Rad1 {[%emt 0:01:19]} c5 {[%emt 0:02:14]} 21. Nf5 {[%emt 0:03:40]} cxd4 {[%emt 0:01:45]} 22. Qxc8 {[%emt 0:03:05]} Qxc8 {[%emt 0:01:19]} 23. Nxd6 {[%emt 0:00:21]} Qe6 {[%emt 0:01:30]} 24. Nxe8 {[%emt 0:00:40]} dxe3 {[%emt 0:02:06]} 25. Nxf6+ {[%emt 0:00:27]} Qxf6 {[%emt 0:01:16]} 26. Rxe3 {[%emt 0:00:54]} Bxa2 {[%emt 0:00:55]} 27. b3 {[%emt 0:00:59]} Bxb3 {[%emt 0:01:13]} 28. Nd7 {[%emt 0:00:30]} Qb2 {[%emt 0:00:36]} 29. Rde1 {[%emt 0:00:40]} Be6 {[%emt 0:00:35]} 30. Nc5 {[%emt 0:00:22]} Qa2 {[%emt 0:00:16]} 1-0

[Event "Delancey UK Schools 2019 U18"]
[Site "Daventry"]
[Date "2019.09.24"]
[Round "4.1"]
[White "Munshi, Aditya"]
[Black "Willow, Jonah B"]
[Result "1/2-1/2"]
[ECO "B31"]
[WhiteElo "2183"]
[BlackElo "2327"]
[Annotator "ChessBase"]
[PlyCount "49"]
[EventDate "2019.09.24"]
[EventCountry "GBR"]
[SourceTitle "playchess.com"]
[Source "ChessBase"]
[SourceQuality "1"]
[TimeControl "40/5400+30:1800+30"]

1. e4 {[%emt 1:10:12]} c5 {[%emt 0:00:01]} 2. Nf3 Nc6 3. Bb5 g6 {[%emt 1:11:10]} 4. Bxc6 {[%emt 0:02:37]} dxc6 {[%emt 0:00:13]} 5. d3 {[%emt 0:00:22]} Bg7 {[%emt 0:00:23]} 6. h3 {[%emt 0:00:22]} e5 {[%emt 0:00:22]} 7. O-O {[%emt 0:00:33]} Ne7 {[%emt 0:00:42]} 8. a3 {[%emt 0:00:59]} a5 {[%emt 0:00:53]} 9. a4 {[%emt 0:00:23]} h6 {[%emt 0:00:31]} 10. Na3 {[%emt 0:00:25]} Be6 {[%emt 0:00:39]} 11. b3 {[%emt 0:02:42]} O-O {[%emt 0:01:25]} 12. Bb2 {[%emt 0:03:20]} Qc7 {[%emt 0:00:36]} 13. Qe1 {[%emt 0:00:43]} b6 {[%emt 0:01:01]} 14. Qc3 {[%emt 0:00:32]} g5 {[%emt 0:00:38]} 15. Nc4 {[%emt 0:01:11]} Ng6 {[%emt 0:01:18]} 16. Ne3 {[%emt 0:01:26]} Nf4 {[%emt 0:01:00]} 17. Rae1 {[%emt 0:02:55]} Rae8 {[%emt 0:01:15]} 18. Nd2 {[%emt 0:01:53]} h5 {[%emt 0:08:13]} 19. Ndc4 {[%emt 0:01:21]} g4 {[%emt 0:00:59]} 20. hxg4 {[%emt 0:03:05]} hxg4 {[%emt 0:00:22]} 21. g3 {[%emt 0:02:23]} Nh3+ {[%emt 0:01:11]} 22. Kg2 {[%emt 0:00:23]} Ng5 {[%emt 0:01:37]} 23. Rh1 {[%emt 0:00:04]} Rb8 {[%emt 0:00:02]} 24. Qxe5 {[%emt 0:00:06]} Bxe5 {[%emt 0:00:02]} 25. Bxe5 {[%emt 0:00:02]} 1/2-1/2

[Event "Delancey UK Schools 2019 U18"]
[Site "Daventry"]
[Date "2019.09.24"]
[Round "4.2"]
[White "Boswell, Jacob Connor"]
[Black "Klingher, Dominic"]
[Result "1-0"]
[ECO "A01"]
[WhiteElo "2000"]
[BlackElo "2071"]
[Annotator "NA"]
[PlyCount "81"]
[EventDate "2019.09.24"]
[EventCountry "GBR"]
[SourceTitle "playchess.com"]
[Source "ChessBase"]
[SourceQuality "1"]
[TimeControl "40/5400+30:1800+30"]

1. b3 {[%emt 1:11:10]} e5 {[%emt 1:10:30]} 2. Bb2 {[%emt 0:00:21]} Nc6 {[%emt 0:00:21]} 3. Nf3 {[%emt 0:00:21]} e4 {[%emt 0:00:26]} 4. Nd4 {[%emt 0:00:20]} Nf6 {[%emt 0:00:22]} 5. Nxc6 {[%emt 0:00:34]} dxc6 {[%emt 0:00:22]} 6. e3 {[%emt 0:00:21]} Bd6 {[%emt 0:00:37]} 7. d3 {[%emt 0:00:22]} Bf5 {[%emt 0:02:56]} 8. Nd2 {[%emt 0:01:17]} Qe7 {[%emt 0:01:47]} 9. Nc4 {[%emt 0:02:48]} O-O-O {[%emt 0:01:50]} 10. Nxd6+ {[%emt 0:00:40]} Qxd6 {[%emt 0:00:26]} 11. d4 {[%emt 0:00:37]} h5 {[%emt 0:03:56]} 12. Be2 {[%emt 0:00:44]} Rh6 {[%emt 0:01:08]} 13. Qd2 {[%emt 0:00:57]} Rg6 {[%emt 0:01:06]} 14. g3 {[%emt 0:01:43]} Ng4 {[%emt 0:00:33]} 15. Bf1 {[%emt 0:01:22]} Ne5 {[%emt 0:00:45]} 16. O-O-O {[%emt 0:00:54]} Nf3 {[%emt 0:00:48]} 17. Qa5 {[%emt 0:00:38]} Be6 {[%emt 0:04:41]} 18. Be2 {[%emt 0:00:55]} Rg5 {[%emt 0:00:53]} 19. Qxa7 {[%emt 0:01:08]} b6 {[%emt 0:01:56]} 20. Ba3 {[%emt 0:02:15]} Qd5 {[%emt 0:01:14]} 21. Be7 {[%emt 0:02:09]} Re8 {[%emt 0:02:28]} 22. Bxg5 {[%emt 0:00:44]} Nxg5 {[%emt 0:00:40]} 23. c4 {[%emt 0:01:45]} Qf5 {[%emt 0:00:56]} 24. d5 {[%emt 0:01:21]} cxd5 {[%emt 0:00:56]} 25. cxd5 {[%emt 0:00:23]} Bxd5 {[%emt 0:00:23]} 26. Ba6+ {[%emt 0:00:35]} Kd8 {[%emt 0:00:38]} 27. Qa8+ {[%emt 0:00:29]} Ke7 {[%emt 0:00:33]} 28. Qxd5 {[%emt 0:00:25]} Qf6 {[%emt 0:00:30]} 29. Qd4 {[%emt 0:01:17]} Qxf2 {[%emt 0:00:34]} 30. Rd2 {[%emt 0:01:25]} Qf3 {[%emt 0:00:33]} 31. Rf1 {[%emt 0:01:06]} Qg4 {[%emt 0:00:29]} 32. Qxg7 {[%emt 0:00:36]} Nf3 {[%emt 0:00:29]} 33. Qxg4 {[%emt 0:01:30]} hxg4 {[%emt 0:00:22]} 34. Bc4 {[%emt 0:01:04]} b5 {[%emt 0:00:40]} 35. Bxb5 {[%emt 0:00:37]} Nxd2 {[%emt 0:00:24]} 36. Kxd2 {[%emt 0:00:22]} Rd8+ {[%emt 0:00:27]} 37. Kc3 {[%emt 0:00:36]} f6 {[%emt 0:00:38]} 38. Rf4 {[%emt 0:00:35]} Rd1 {[%emt 0:00:32]} 39. Rxe4+ {[%emt 0:00:24]} Kf8 {[%emt 0:00:29]} 40. Rxg4 {[%emt 0:00:31]} c6 {[%emt 0:00:25]} 41. Bc4 {[%emt 0:30:24]} 1-0

[Event "Delancey UK Schools 2019 U18"]
[Site "Daventry"]
[Date "2019.09.24"]
[Round "4.3"]
[White "Kalavannan, Koby"]
[Black "Carroll, Thomas"]
[Result "1-0"]
[ECO "A48"]
[WhiteElo "2324"]
[BlackElo "2036"]
[Annotator "ChessBase"]
[PlyCount "51"]
[EventDate "2019.09.24"]
[EventCountry "GBR"]
[SourceTitle "playchess.com"]
[Source "ChessBase"]
[SourceQuality "1"]
[TimeControl "40/5400+30:1800+30"]

1. Nf3 {[%emt 1:10:19]} Nf6 {[%emt 1:10:13]} 2. e3 {[%emt 0:00:27]} c5 {[%emt 0:00:29]} 3. d4 {[%emt 0:00:33]} g6 {[%emt 0:00:29]} 4. b3 {[%emt 0:00:31]} Bg7 {[%emt 0:00:30]} 5. Bb2 {[%emt 0:00:22]} O-O {[%emt 0:00:29]} 6. Nbd2 {[%emt 0:00:27]} Nc6 {[%emt 0:00:44]} 7. dxc5 {[%emt 0:00:39]} Qa5 {[%emt 0:01:15]} 8. a3 {[%emt 0:00:21]} Qxc5 {[%emt 0:00:36]} 9. b4 {[%emt 0:00:21]} Qb6 {[%emt 0:01:01]} 10. c4 {[%emt 0:00:31]} a5 {[%emt 0:03:02]} 11. c5 {[%emt 0:00:50]} Qd8 {[%emt 0:01:53]} 12. b5 {[%emt 0:00:39]} Na7 {[%emt 0:01:04]} 13. Nc4 {[%emt 0:00:35]} Ne8 {[%emt 0:01:36]} 14. Bxg7 {[%emt 0:02:54]} Nxg7 {[%emt 0:00:45]} 15. Nb6 {[%emt 0:01:05]} Rb8 {[%emt 0:00:50]} 16. Qa4 {[%emt 0:00:30]} Qc7 {[%emt 0:03:30]} 17. Qxa5 {[%emt 0:04:24]} Qxc5 {[%emt 0:01:23]} 18. Na4 {[%emt 0:00:22]} Nc6 {[%emt 0:01:13]} 19. Qc7 {[%emt 0:00:49]} Qa7 {[%emt 0:01:26]} 20. bxc6 {[%emt 0:00:35]} Ne6 {[%emt 0:00:51]} 21. Qe5 {[%emt 0:01:21]} f6 {[%emt 0:02:26]} 22. Qe4 {[%emt 0:00:41]} bxc6 {[%emt 0:02:00]} 23. Qc2 {[%emt 0:01:52]} Qa5+ {[%emt 0:00:57]} 24. Nc3 {[%emt 0:00:44]} Nc5 {[%emt 0:00:24]} 25. Be2 {[%emt 0:00:44]} Rb3 {[%emt 0:02:04]} 26. Bc4+ {[%emt 0:00:25]} 1-0

[Event "Delancey UK Schools 2019 U18"]
[Site "Daventry"]
[Date "2019.09.24"]
[Round "4.4"]
[White "Golding, Alex"]
[Black "Jain, Gautam"]
[Result "1-0"]
[ECO "B07"]
[WhiteElo "2306"]
[BlackElo "1900"]
[Annotator "ChessBase"]
[PlyCount "81"]
[EventDate "2019.09.24"]
[EventCountry "GBR"]
[SourceTitle "playchess.com"]
[Source "ChessBase"]
[SourceQuality "1"]
[TimeControl "40/5400+30:1800+30"]

1. e4 {[%emt 1:10:12]} d6 {[%emt 1:15:11]} 2. d4 {[%emt 0:00:25]} Nf6 {[%emt 0:00:21]} 3. f3 {[%emt 0:00:26]} Nbd7 {[%emt 0:00:35]} 4. Be3 {[%emt 0:00:31]} e5 {[%emt 0:00:28]} 5. d5 {[%emt 0:00:31]} c6 {[%emt 0:01:13]} 6. c4 {[%emt 0:00:24]} cxd5 {[%emt 0:01:57]} 7. cxd5 {[%emt 0:00:21]} g6 {[%emt 0:00:21]} 8. a4 {[%emt 0:01:08]} Bg7 {[%emt 0:02:26]} 9. a5 {[%emt 0:00:59]} O-O {[%emt 0:00:40]} 10. Be2 {[%emt 0:01:11]} Nh5 {[%emt 0:01:36]} 11. Nh3 {[%emt 0:00:24]} Nc5 {[%emt 0:01:33]} 12. Nf2 {[%emt 0:00:24]} Nf4 {[%emt 0:02:53]} 13. O-O {[%emt 0:00:51]} Qg5 {[%emt 0:00:45]} 14. Bxf4 {[%emt 0:00:32]} exf4 {[%emt 0:01:30]} 15. Ra2 {[%emt 0:00:25]} f5 {[%emt 0:00:33]} 16. b4 {[%emt 0:00:32]} Nd7 {[%emt 0:01:03]} 17. Rc2 {[%emt 0:00:31]} Nf6 {[%emt 0:00:43]} 18. Rc7 {[%emt 0:00:57]} fxe4 {[%emt 0:00:19]} 19. fxe4 {[%emt 0:00:04]} Nd7 {[%emt 0:01:49]} 20. Nd2 {[%emt 0:01:30]} Ne5 {[%emt 0:00:03]} 21. Kh1 {[%emt 0:00:08]} Qh4 {[%emt 0:00:50]} 22. Nf3 {[%emt 0:01:19]} Nxf3 {[%emt 0:00:03]} 23. Bxf3 {[%emt 0:00:05]} g5 {[%emt 0:00:51]} 24. Qe2 {[%emt 0:00:48]} b6 {[%emt 0:00:07]} 25. a6 {[%emt 0:00:12]} b5 {[%emt 0:00:23]} 26. Rfc1 {[%emt 0:01:37]} Bd4 {[%emt 0:00:07]} 27. Ng4 {[%emt 0:00:05]} Bb6 {[%emt 0:00:26]} 28. R7c6 {[%emt 0:01:06]} Bd7 {[%emt 0:00:22]} 29. Rxd6 {[%emt 0:00:05]} Rac8 {[%emt 0:00:38]} 30. Nf6+ {[%emt 0:05:23]} Kh8 {[%emt 0:04:55]} 31. Rf1 {[%emt 0:00:27]} Be8 {[%emt 0:00:37]} 32. e5 {[%emt 0:00:46]} Bg6 {[%emt 0:00:22]} 33. Be4 {[%emt 0:00:34]} Rc7 {[%emt 0:00:38]} 34. Rd7 {[%emt 0:01:32]} Rxd7 {[%emt 0:00:29]} 35. Nxd7 {[%emt 0:00:22]} Rc8 {[%emt 0:00:31]} 36. Nxb6 {[%emt 0:00:31]} axb6 {[%emt 0:00:26]} 37. Bxg6 {[%emt 0:00:25]} hxg6 {[%emt 0:00:23]} 38. e6 {[%emt 0:00:32]} Kg7 {[%emt 0:00:39]} 39. Qe5+ {[%emt 0:00:29]} Kf8 {[%emt 0:00:21]} 40. Qf6+ {[%emt 0:00:26]} Ke8 {[%emt 0:00:22]} 41. Qf7+ {[%emt 0:30:22]} 1-0

[Event "Delancey UK Schools 2019 U18"]
[Site "Daventry"]
[Date "2019.09.24"]
[Round "4.5"]
[White "Grieve, Harry"]
[Black "Brown, Tom"]
[Result "1-0"]
[ECO "B12"]
[WhiteElo "2277"]
[BlackElo "2005"]
[Annotator "ChessBase"]
[PlyCount "103"]
[EventDate "2019.09.24"]
[EventCountry "GBR"]
[SourceTitle "playchess.com"]
[Source "ChessBase"]
[SourceQuality "1"]
[TimeControl "40/5400+30:1800+30"]

1. e4 {[%emt 1:10:11]} c6 {[%emt 1:10:12]} 2. d4 {[%emt 0:00:22]} d5 {[%emt 0:00:23]} 3. e5 {[%emt 0:00:22]} Bf5 {[%emt 0:00:24]} 4. h4 {[%emt 0:00:22]} h5 {[%emt 0:01:13]} 5. Bd3 {[%emt 0:00:22]} Bxd3 {[%emt 0:00:43]} 6. Qxd3 {[%emt 0:00:21]} e6 {[%emt 0:00:21]} 7. Bg5 {[%emt 0:00:21]} Qb6 {[%emt 0:01:21]} 8. Nd2 {[%emt 0:00:21]} Ne7 {[%emt 0:01:21]} 9. Ne2 {[%emt 0:01:57]} Nf5 {[%emt 0:00:54]} 10. c4 {[%emt 0:00:46]} Nd7 {[%emt 0:02:49]} 11. g3 {[%emt 0:02:56]} dxc4 {[%emt 0:01:46]} 12. Nxc4 {[%emt 0:00:45]} Qc7 {[%emt 0:01:23]} 13. O-O {[%emt 0:01:03]} Nb6 {[%emt 0:01:02]} 14. Ne3 {[%emt 0:00:42]} g6 {[%emt 0:01:41]} 15. Nc3 {[%emt 0:00:54]} Be7 {[%emt 0:00:51]} 16. Ne4 {[%emt 0:01:03]} O-O-O {[%emt 0:01:46]} 17. Nxf5 {[%emt 0:01:04]} gxf5 {[%emt 0:00:51]} 18. Nd6+ {[%emt 0:01:02]} Rxd6 {[%emt 0:01:52]} 19. exd6 {[%emt 0:00:49]} Bxd6 {[%emt 0:00:38]} 20. Qf3 {[%emt 0:01:09]} Nd5 {[%emt 0:00:46]} 21. Kh1 {[%emt 0:01:40]} Kb8 {[%emt 0:01:43]} 22. Rab1 {[%emt 0:01:03]} f4 {[%emt 0:02:31]} 23. Bxf4 {[%emt 0:01:07]} Bxf4 {[%emt 0:00:51]} 24. gxf4 {[%emt 0:00:22]} Nxf4 {[%emt 0:01:05]} 25. Rg1 {[%emt 0:00:45]} Ng6 {[%emt 0:00:30]} 26. Qg3 {[%emt 0:01:06]} Rd8 {[%emt 0:00:51]} 27. Rbd1 {[%emt 0:00:39]} Rd5 {[%emt 0:00:35]} 28. Kg2 {[%emt 0:02:22]} Rf5 {[%emt 0:01:10]} 29. Qxc7+ {[%emt 0:02:54]} Kxc7 {[%emt 0:00:21]} 30. Kg3 {[%emt 0:00:54]} Rf4 {[%emt 0:00:53]} 31. f3 {[%emt 0:00:48]} Rf5 {[%emt 0:01:36]} 32. Rg2 {[%emt 0:01:43]} Nf4 {[%emt 0:00:37]} 33. Rc2 {[%emt 0:00:38]} Nd5 {[%emt 0:00:27]} 34. Re2 {[%emt 0:00:23]} Rf6 {[%emt 0:00:51]} 35. Re5 {[%emt 0:00:37]} Rg6+ {[%emt 0:00:32]} 36. Rg5 {[%emt 0:00:34]} Ne7 {[%emt 0:00:48]} 37. Kf4 {[%emt 0:01:04]} Nd5+ {[%emt 0:00:25]} 38. Ke4 {[%emt 0:01:23]} Nf6+ {[%emt 0:00:38]} 39. Ke5 {[%emt 0:01:07]} Ng4+ {[%emt 0:00:35]} 40. fxg4 {[%emt 0:01:23]} f6+ {[%emt 0:00:23]} 41. Kxe6 {[%emt 0:30:22]} fxg5+ {[%emt 0:30:28]} 42. Kf7 {[%emt 0:00:40]} Rd6 {[%emt 0:00:33]} 43. hxg5 {[%emt 0:00:33]} hxg4 {[%emt 0:00:35]} 44. g6 {[%emt 0:00:22]} Rd7+ {[%emt 0:00:25]} 45. Kg8 {[%emt 0:00:40]} Rd8+ {[%emt 0:00:35]} 46. Kh7 {[%emt 0:00:23]} g3 {[%emt 0:00:33]} 47. g7 {[%emt 0:00:25]} g2 {[%emt 0:00:30]} 48. g8=Q {[%emt 0:00:26]} Rd7+ {[%emt 0:00:29]} 49. Kh6 {[%emt 0:00:28]} Rd6+ {[%emt 0:00:21]} 50. Kh5 {[%emt 0:00:26]} Rd5+ {[%emt 0:00:21]} 51. Qxd5 {[%emt 0:00:22]} cxd5 {[%emt 0:00:22]} 52. Rg1 {[%emt 0:00:22]} 1-0

[Event "Delancey UK Schools 2019 U18"]
[Site "Daventry"]
[Date "2019.09.24"]
[Round "4.6"]
[White "Pollack, Oscar"]
[Black "Golding, James"]
[Result "1-0"]
[ECO "C54"]
[WhiteElo "2112"]
[BlackElo "2075"]
[Annotator "ChessBase"]
[PlyCount "73"]
[EventDate "2019.09.24"]
[EventCountry "GBR"]
[SourceTitle "playchess.com"]
[Source "ChessBase"]
[SourceQuality "1"]
[TimeControl "40/5400+30:1800+30"]

1. e4 {[%emt 1:10:10]} e5 {[%emt 1:10:11]} 2. Nf3 {[%emt 0:00:21]} Nc6 {[%emt 0:00:21]} 3. Bc4 {[%emt 0:00:21]} Nf6 {[%emt 0:00:22]} 4. d3 {[%emt 0:00:21]} Bc5 {[%emt 0:00:22]} 5. c3 {[%emt 0:00:20]} a6 {[%emt 0:00:23]} 6. Bb3 {[%emt 0:00:37]} Ba7 {[%emt 0:00:22]} 7. O-O {[%emt 0:00:26]} h6 {[%emt 0:00:33]} 8. Nbd2 {[%emt 0:00:32]} O-O {[%emt 0:00:28]} 9. Qe2 {[%emt 0:00:41]} Re8 {[%emt 0:00:44]} 10. h3 {[%emt 0:00:22]} Nh5 {[%emt 0:01:14]} 11. Nc4 {[%emt 0:01:17]} Ng3 {[%emt 0:00:39]} 12. Qd1 {[%emt 0:00:59]} Nxf1 {[%emt 0:00:23]} 13. Qxf1 {[%emt 0:00:21]} d6 {[%emt 0:00:43]} 14. Ne3 {[%emt 0:00:49]} Be6 {[%emt 0:00:57]} 15. Bc2 {[%emt 0:01:13]} Qf6 {[%emt 0:01:05]} 16. Ng4 {[%emt 0:01:10]} Bxg4 {[%emt 0:01:37]} 17. hxg4 {[%emt 0:00:21]} g5 {[%emt 0:02:26]} 18. Qe2 {[%emt 0:00:45]} Nd8 {[%emt 0:01:21]} 19. Be3 {[%emt 0:02:35]} Ne6 {[%emt 0:01:24]} 20. g3 {[%emt 0:00:34]} Qg6 {[%emt 0:02:50]} 21. Nd2 {[%emt 0:01:58]} Bxe3 {[%emt 0:00:54]} 22. fxe3 {[%emt 0:01:28]} Kg7 {[%emt 0:02:51]} 23. Kg2 {[%emt 0:00:30]} Rh8 {[%emt 0:00:24]} 24. Rh1 {[%emt 0:00:44]} Nc5 {[%emt 0:01:34]} 25. Nc4 {[%emt 0:02:41]} Nd7 {[%emt 0:01:09]} 26. Bd1 {[%emt 0:02:33]} Nf6 {[%emt 0:01:32]} 27. Na5 {[%emt 0:01:21]} b6 {[%emt 0:00:35]} 28. Nc6 {[%emt 0:00:54]} Rae8 {[%emt 0:00:46]} 29. Kg1 {[%emt 0:01:57]} a5 {[%emt 0:01:05]} 30. a3 {[%emt 0:01:34]} Nxe4 {[%emt 0:01:56]} 31. dxe4 {[%emt 0:00:31]} Qxe4 {[%emt 0:00:22]} 32. Qf3 {[%emt 0:01:37]} Qxf3 {[%emt 0:01:46]} 33. Bxf3 {[%emt 0:00:21]} e4 {[%emt 0:00:22]} 34. Be2 {[%emt 0:00:35]} Kg6 {[%emt 0:01:27]} 35. Nd4 {[%emt 0:00:36]} Rh7 {[%emt 0:01:27]} 36. Kg2 {[%emt 0:00:44]} Re5 {[%emt 0:00:44]} 37. Rf1 {[%emt 0:01:23]} 1-0